fUST/lending_fUST_20241110
["ID","MTS","AMOUNT","RATE_DAILY","PERIOD"]
[341837725,1731250242933,-374.99876,0.00027573,7]
[341837728,1731250242942,-420.0,0.00027587,2]
[341837731,1731250242952,-151.0,0.00027595,7]
[341837733,1731250242961,-151.0,0.00027595,7]
[341837735,1731250242971,-1006.294535,0.00027595,7]
[341837736,1731250242980,-1006.294535,0.00027595,7]
[341837737,1731250242991,-1006.294535,0.00027595,7]
[341837738,1731250243000,-1006.294535,0.00027595,7]
[341837739,1731250243010,-374.99876,0.00027595,7]
[341837740,1731250243019,-151.0,0.00027595,7]
[341837741,1731250243029,-151.0,0.00027595,7]
[341837742,1731250243039,-374.99876,0.00027595,7]
[341837744,1731250243048,-151.0,0.00027595,7]
[341837746,1731250243058,-151.0,0.00027595,7]
[341837748,1731250243067,-1191.517808,0.00027596,7]
[341837750,1731250243077,-1191.517808,0.00027596,7]
[341837752,1731250243086,-1191.517808,0.00027596,7]
[341837754,1731250243096,-1191.517808,0.00027596,7]
[341837756,1731250243105,-320.522925,0.00027596,7]
[341837758,1731250243114,-320.522925,0.00027596,7]
[341837760,1731250243123,-320.522925,0.00027596,7]
[341837762,1731250243133,-320.522925,0.00027596,7]
[341837764,1731250243142,-151.0,0.00027596,7]
[341837766,1731250243151,-151.0,0.00027596,7]
[341837768,1731250243160,-151.0,0.00027596,7]
[341837770,1731250243169,-151.0,0.00027596,7]
[341837772,1731250243178,-9773.14,0.00027596,2]
[341837774,1731250243187,-9773.14,0.00027596,2]
[341837776,1731250243196,-9773.14,0.00027596,2]
[341837778,1731250243205,-9773.14,0.00027596,2]
[341837780,1731250243214,-2140.67,0.00027596,2]
[341837782,1731250243223,-2140.67,0.00027596,2]
[341837784,1731250243232,-2140.67,0.00027596,2]
[341837786,1731250243244,-2140.67,0.00027596,2]
[341837788,1731250243253,-334.1744324,0.00027596,2]
[341837790,1731250243262,-331.18643918,0.00027596,2]
[341837792,1731250243271,-500.0,0.00027596,2]
[341837794,1731250243280,-443.63558132,0.00027596,2]
[341837796,1731250243290,-450.64493472,0.00027596,2]
[341837798,1731250243299,-500.0,0.00027596,2]
[341837800,1731250243308,-500.0,0.00027596,2]
[341837802,1731250243317,-500.0,0.00027596,2]
[341837804,1731250243327,-153.37337659,0.00027596,2]
[341837806,1731250243337,-500.0,0.00027596,2]
[341837807,1731250243346,-500.0,0.00027596,2]
[341837810,1731250243356,-279.80252416,0.00027596,2]
[341837812,1731250243366,-500.0,0.00027596,2]
[341837814,1731250243376,-500.0,0.00027596,2]
[341837816,1731250243385,-500.0,0.00027596,2]
[341837818,1731250243395,-406.06848067,0.00027596,2]
[341837820,1731250243404,-378.02967124,0.00027596,2]
[341837822,1731250243413,-500.0,0.00027596,2]
[341837824,1731250243424,-500.0,0.00027596,2]
[341837826,1731250243434,-500.0,0.00027596,2]
[341837828,1731250243443,-160.0,0.00027596,10]
[341837830,1731250243452,-656.67229143,0.00027597,2]
[341837832,1731250243461,-548.92612234,0.00027597,2]
[341837834,1731250243471,-500.0,0.00027597,2]
[341837836,1731250243481,-502.54977781,0.00027597,2]
[341837838,1731250243491,-500.0,0.00027597,2]
[341837839,1731250243501,-500.0,0.00027597,2]
[341837842,1731250243510,-501.79378426,0.00027597,2]
[341837844,1731250243520,-521.86041506,0.00027597,2]
[341837846,1731250243530,-500.0,0.00027597,2]
[341837848,1731250243539,-500.0,0.00027597,2]
[341837849,1731250243550,-500.0,0.00027597,2]
[341837851,1731250243559,-500.0,0.00027597,2]
[341837853,1731250243568,-923.64,0.00027597,2]
[341837855,1731250243579,-500.0,0.00027597,2]
[341837858,1731250243588,-500.0,0.00027597,2]
[341837860,1731250243598,-500.0,0.00027597,2]
[341837862,1731250243607,-235.37026322,0.00027597,2]
[341837864,1731250243616,-500.0,0.00027597,2]
[341837866,1731250243626,-168.25084029,0.00027597,2]
[341837868,1731250243635,-508.07125798,0.00027597,2]
[341837870,1731250243644,-1000.0,0.00027597,2]
[341837872,1731250243654,-411.81066229,0.00027597,2]
[341837874,1731250243663,-500.0,0.00027597,2]
[341837876,1731250243673,-500.0,0.00027597,2]
[341837878,1731250243682,-500.0,0.00027597,2]
[341837880,1731250243691,-500.0,0.00027597,2]
[341837882,1731250243699,-559.20774295,0.00027597,2]
[341837884,1731250243708,-500.0,0.00027597,2]
[341837886,1731250243718,-500.0,0.00027597,2]
[341837888,1731250243730,-500.0,0.00027597,2]
[341837890,1731250243739,-501.57654143,0.00027597,2]
[341837892,1731250243750,-500.81312293,0.00027597,2]
[341837894,1731250243759,-502.76298619,0.00027597,2]
[341837896,1731250243770,-500.0,0.00027597,2]
[341837898,1731250243779,-500.0,0.00027597,2]
[341837900,1731250243789,-500.0,0.00027597,2]
[341837902,1731250243800,-500.0,0.00027597,2]
[341837904,1731250243809,-500.0,0.00027597,2]
[341837906,1731250243819,-500.0,0.00027597,2]
[341837908,1731250243829,-500.0,0.00027597,2]
[341837910,1731250243838,-501.12035207,0.00027597,2]
[341837912,1731250243847,-500.0,0.00027597,2]
[341837914,1731250243855,-500.0,0.00027597,2]
[341837916,1731250243864,-500.0,0.00027597,2]
[341837918,1731250243873,-500.0,0.00027597,2]
[341837920,1731250243882,-500.0,0.00027597,2]
[341837922,1731250243891,-501.33652771,0.00027597,2]
[341837924,1731250243901,-500.0,0.00027597,2]
[341837926,1731250243910,-500.98864187,0.00027597,2]
[341837928,1731250243919,-301.61926498,0.00027597,2]
[341837930,1731250243928,-500.0,0.00027597,2]
[341837932,1731250243937,-500.0,0.00027597,2]
[341837934,1731250243947,-500.0,0.00027597,2]
[341837936,1731250243956,-500.0,0.00027597,2]
[341837938,1731250243965,-500.0,0.00027597,2]
[341837940,1731250243974,-500.0,0.00027597,2]
[341837942,1731250243984,-500.0,0.00027597,2]
[341837944,1731250243994,-605.15,0.00027597,2]
[341837946,1731250244003,-788.21,0.00027597,2]
[341837948,1731250244012,-500.0,0.00027597,2]
[341837950,1731250244021,-500.0,0.00027597,2]
[341837952,1731250244031,-500.0,0.00027597,2]
[341837954,1731250244039,-500.0,0.00027597,2]
[341837956,1731250244049,-500.0,0.00027597,2]
[341837958,1731250244058,-500.0,0.00027597,2]
[341837960,1731250244067,-500.0,0.00027597,2]
[341837962,1731250244076,-500.0,0.00027597,2]
[341837964,1731250244085,-500.0,0.00027597,2]
[341837966,1731250244094,-584.96079147,0.00027597,2]
[341837968,1731250244104,-500.0,0.00027597,2]
[341837970,1731250244113,-510.21449687,0.00027597,2]
[341837972,1731250244122,-500.0,0.00027597,2]
[341837974,1731250244131,-500.0,0.00027597,2]
[341837976,1731250244141,-500.0,0.00027597,2]
[341837978,1731250244150,-500.0,0.00027597,2]
[341837980,1731250244159,-500.0,0.00027597,2]
[341837982,1731250244168,-542.5421081,0.00027597,2]
[341837984,1731250244177,-500.0,0.00027597,2]
[341837986,1731250244187,-500.0,0.00027597,2]
[341837988,1731250244195,-500.0,0.00027597,2]
[341837990,1731250244206,-500.0,0.00027597,2]
[341837992,1731250244215,-500.0,0.00027597,2]
[341837994,1731250244225,-500.0,0.00027597,2]
[341837996,1731250244234,-500.0,0.00027597,2]
[341837998,1731250244246,-500.0,0.00027597,2]
[341838000,1731250244256,-504.1342516,0.00027597,2]
[341838002,1731250244265,-500.0,0.00027597,2]
[341838004,1731250244274,-500.0,0.00027597,2]
[341838006,1731250244283,-500.0,0.00027597,2]
[341838008,1731250244293,-514.34053155,0.00027597,2]
[341838010,1731250244302,-311.76168722,0.00027597,2]
[341838012,1731250244311,-500.0,0.00027597,2]
[341838014,1731250244321,-624.78,0.00027597,2]
[341838016,1731250244330,-500.0,0.00027597,2]
[341838018,1731250244339,-500.0,0.00027597,2]
[341838020,1731250244348,-502.42156283,0.00027597,2]
[341838022,1731250244357,-500.0,0.00027597,2]
[341838024,1731250244367,-543.09,0.00027597,2]
[341838026,1731250244376,-632.9,0.00027597,2]
[341838028,1731250244385,-500.0,0.00027597,2]
[341838030,1731250244395,-515.2669321,0.00027597,2]
[341838032,1731250244404,-572.78,0.00027597,2]
[341838034,1731250244414,-500.0,0.00027597,2]
[341838036,1731250244423,-500.0,0.00027597,2]
[341838038,1731250244432,-529.89562833,0.00027597,2]
[341838040,1731250244441,-614.68,0.00027597,2]
[341838042,1731250244450,-500.0,0.00027597,2]
[341838044,1731250244459,-500.0,0.00027597,2]
[341838046,1731250244468,-500.0,0.00027597,2]
[341838048,1731250244477,-500.0,0.00027597,2]
[341838050,1731250244486,-500.0,0.00027597,2]
[341838052,1731250244498,-500.0,0.00027597,2]
[341838054,1731250244508,-500.0,0.00027597,2]
[341838056,1731250244517,-615.62101791,0.00027597,2]
[341838058,1731250244526,-500.0,0.00027597,2]
[341838060,1731250244535,-500.0,0.00027597,2]
[341838062,1731250244545,-375.77973367,0.00027597,2]
[341838064,1731250244554,-1000.0,0.00027597,2]
[341838066,1731250244563,-500.0,0.00027597,2]
[341838068,1731250244573,-500.0,0.00027597,2]
[341838070,1731250244582,-500.0,0.00027597,2]
[341838072,1731250244591,-500.0,0.00027597,2]
[341838074,1731250244601,-500.0,0.00027597,2]
[341838076,1731250244610,-500.0,0.00027597,2]
[341838078,1731250244619,-500.0,0.00027597,2]
[341838080,1731250244628,-500.0,0.00027597,2]
[341838082,1731250244638,-500.0,0.00027597,2]
[341838084,1731250244647,-500.0,0.00027597,2]
[341838086,1731250244657,-500.0,0.00027597,2]
[341838097,1731250244748,-524.33121824,0.00027597,2]
[341838099,1731250244769,-670.34,0.00027597,2]
[341838101,1731250244779,-442.86364092,0.00027597,2]
[341838103,1731250244788,-559.4747919,0.00027597,2]
[341838105,1731250244798,-505.79814864,0.00027597,2]
[341838108,1731250244810,-500.0,0.00027597,2]
[341838110,1731250244821,-634.41,0.00027597,2]
[341838112,1731250244832,-500.0,0.00027597,2]
[341838114,1731250244842,-500.0,0.00027597,2]
[341838116,1731250244851,-500.0,0.00027597,2]
[341838118,1731250244861,-500.0,0.00027597,2]
[341838120,1731250244871,-500.0,0.00027597,2]
[341838122,1731250244880,-500.0,0.00027597,2]
[341838124,1731250244889,-500.0,0.00027597,2]
[341838126,1731250244898,-504.33165832,0.00027597,2]
[341838128,1731250244907,-1638.15,0.00027597,2]
[341838130,1731250244916,-541.81619855,0.00027597,2]
[341838132,1731250244925,-500.0,0.00027597,2]
[341838134,1731250244935,-498.0,0.00027597,2]
[341838136,1731250244944,-500.0,0.00027597,2]
[341838138,1731250244953,-500.0,0.00027597,2]
[341838140,1731250244963,-500.0,0.00027597,2]
[341838142,1731250244972,-500.0,0.00027597,2]
[341838144,1731250244981,-964.53,0.00027597,2]
[341838146,1731250244990,-151.768393,0.00027597,7]
[341838148,1731250245001,-500.0,0.00027597,2]
[341838150,1731250245010,-151.0,0.00027597,3]
[341838152,1731250245019,-263.774245,0.00027597,3]
[341838154,1731250245028,-597.06911516,0.00027597,2]
[341838156,1731250245038,-500.0,0.00027597,2]
[341838158,1731250245047,-500.0,0.00027597,2]
[341838160,1731250245056,-500.0,0.00027597,2]
[341838162,1731250245065,-500.0,0.00027597,2]
[341838164,1731250245074,-151.0,0.00027597,7]
[341838166,1731250245084,-500.0,0.00027597,2]
[341838168,1731250245093,-151.0,0.00027597,7]
[341838170,1731250245102,-406.63178476,0.00027597,2]
[341838172,1731250245112,-500.0,0.00027597,2]
[341838174,1731250245121,-151.0,0.00027597,7]
[341838176,1731250245130,-151.0,0.00027597,7]
[341838178,1731250245140,-500.0,0.00027597,2]
[341838180,1731250245149,-163.82883108,0.00027597,2]
[341838182,1731250245159,-590.590957,0.00027597,7]
[341838184,1731250245168,-590.590957,0.00027597,7]
[341838186,1731250245177,-590.590957,0.00027597,7]
[341838188,1731250245186,-590.590957,0.00027597,7]
[341838190,1731250245195,-500.0,0.00027597,2]
[341838192,1731250245204,-500.0,0.00027597,2]
[341838194,1731250245213,-500.0,0.00027597,2]
[341838196,1731250245222,-500.0,0.00027597,2]
[341838198,1731250245231,-500.0,0.00027597,2]
[341838200,1731250245243,-151.0,0.00027597,7]
[341838202,1731250245252,-500.0,0.00027597,2]
[341838204,1731250245261,-500.0,0.00027597,2]
[341838206,1731250245271,-151.0,0.00027597,7]
[341838208,1731250245280,-500.0,0.00027597,2]
[341838210,1731250245289,-500.0,0.00027597,2]
[341838212,1731250245299,-500.0,0.00027597,2]
[341838214,1731250245308,-500.0,0.00027597,2]
[341838216,1731250245318,-500.0,0.00027597,2]
[341838218,1731250245327,-151.0,0.00027597,7]
[341838220,1731250245336,-151.0,0.00027597,7]
[341838222,1731250245346,-500.0,0.00027597,2]
[341838224,1731250245356,-508.11079729,0.00027597,2]
[341838226,1731250245365,-155.06557,0.00027597,7]
[341838228,1731250245375,-500.0,0.00027597,2]
[341838230,1731250245384,-158.30471881,0.00027597,2]
[341838232,1731250245394,-500.0,0.00027597,2]
[341838234,1731250245404,-500.0,0.00027597,2]
[341838236,1731250245414,-500.0,0.00027597,2]
[341838238,1731250245423,-513.84660173,0.00027597,2]
[341838240,1731250245432,-518.50551859,0.00027597,2]
[341838242,1731250245441,-500.0,0.00027597,2]
[341838244,1731250245451,-422.63512285,0.00027597,2]
[341838246,1731250245461,-500.0,0.00027597,2]
[341838249,1731250245470,-500.0,0.00027597,2]
[341838250,1731250245480,-500.0,0.00027597,2]
[341838252,1731250245489,-528.40321993,0.00027597,2]
[341838254,1731250245501,-540.45251602,0.00027597,2]
[341838256,1731250245510,-851.51,0.00027597,2]
[341838258,1731250245519,-500.0,0.00027597,2]
[341838260,1731250245529,-516.49087283,0.00027597,2]
[341838262,1731250245538,-500.0,0.00027597,2]
[341838264,1731250245548,-500.0,0.00027597,2]
[341838266,1731250245558,-321.719436,0.00027597,7]
[341838268,1731250245568,-321.719436,0.00027597,7]
[341838270,1731250245578,-1484.65,0.00027597,2]
[341838273,1731250245587,-429.87334161,0.00027597,2]
[341838274,1731250245596,-502.10736156,0.00027597,2]
[341838277,1731250245607,-321.719436,0.00027597,7]
[341838279,1731250245616,-321.719436,0.00027597,7]
[341838281,1731250245626,-500.0,0.00027597,2]
[341838283,1731250245635,-500.0,0.00027597,2]
[341838285,1731250245645,-527.50004315,0.00027597,2]
[341838289,1731250245655,-151.0,0.00027597,7]
[341838292,1731250245664,-560.2,0.00027597,2]
[341838294,1731250245674,-151.0,0.00027597,7]
[341838296,1731250245684,-511.39697647,0.00027597,2]
[341838298,1731250245695,-500.0,0.00027597,2]
[341838299,1731250245705,-506.45497834,0.00027597,2]
[341838301,1731250245716,-500.0,0.00027597,2]
[341838303,1731250245727,-500.0,0.00027597,2]
[341838305,1731250245736,-500.0,0.00027597,2]
[341838308,1731250245747,-151.0,0.00027597,7]
[341838310,1731250245756,-151.0,0.00027597,7]
[341838313,1731250245766,-500.0,0.00027597,2]
[341838315,1731250245775,-1191.517808,0.00027597,7]
[341838319,1731250245784,-1191.517808,0.00027597,7]
[341838320,1731250245794,-527.41490177,0.00027597,2]
[341838323,1731250245804,-1191.517808,0.00027597,7]
[341838325,1731250245813,-1191.517808,0.00027597,7]
[341838326,1731250245823,-500.0,0.00027597,2]
[341838327,1731250245833,-151.0,0.00027597,7]
[341838328,1731250245844,-151.0,0.00027597,7]
[341838329,1731250245853,-500.0,0.00027597,2]
[341838330,1731250245862,-500.0,0.00027597,2]
[341838331,1731250245871,-880.03,0.00027597,2]
[341838332,1731250245880,-320.522925,0.00027597,7]
[341838333,1731250245889,-320.522925,0.00027597,7]
[341838334,1731250245898,-500.0,0.00027597,2]
[341838335,1731250245908,-500.0,0.00027597,2]
[341838336,1731250245918,-500.0,0.00027597,2]
[341838337,1731250245927,-320.522925,0.00027597,7]
[341838338,1731250245937,-320.522925,0.00027597,7]
[341838339,1731250245946,-500.0,0.00027597,2]
[341838340,1731250245954,-500.0,0.00027597,2]
[341838341,1731250245962,-500.0,0.00027597,2]
[341838342,1731250245971,-500.0,0.00027597,2]
[341838343,1731250245980,-500.0,0.00027597,2]
[341838344,1731250245990,-500.0,0.00027597,2]
[341838345,1731250246003,-180.38531866,0.00027597,2]
[341838346,1731250246012,-2366.305193,0.00027597,7]
[341838347,1731250246021,-2366.305193,0.00027597,7]
[341838348,1731250246031,-151.0,0.00027597,7]
[341838349,1731250246040,-151.0,0.00027597,7]
[341838350,1731250246049,-684.46,0.00027597,2]
[341838351,1731250246057,-2366.305193,0.00027597,7]
[341838352,1731250246066,-2366.305193,0.00027597,7]
[341838353,1731250246075,-151.0,0.00027597,7]
[341838354,1731250246084,-151.0,0.00027597,7]
[341838355,1731250246094,-834.61,0.00027597,2]
[341838356,1731250246103,-500.0,0.00027597,2]
[341838357,1731250246113,-500.0,0.00027597,2]
[341838358,1731250246123,-506.78733619,0.00027597,2]
[341838359,1731250246132,-511.45859781,0.00027597,2]
[341838360,1731250246141,-500.0,0.00027597,2]
[341838361,1731250246151,-500.0,0.00027597,2]
[341838362,1731250246161,-501.03410049,0.00027597,2]
[341838363,1731250246172,-500.0,0.00027597,2]
[341838364,1731250246183,-500.0,0.00027597,2]
[341838365,1731250246193,-500.0,0.00027597,2]
[341838366,1731250246202,-500.0,0.00027597,2]
[341838367,1731250246212,-151.0,0.00027597,7]
[341838368,1731250246222,-152.319636,0.00027597,7]
[341838369,1731250246232,-500.0,0.00027597,2]
[341838370,1731250246244,-500.0,0.00027597,2]
[341838371,1731250246258,-500.0,0.00027597,2]
[341838372,1731250246268,-500.0,0.00027597,2]
[341838373,1731250246277,-500.0,0.00027597,2]
[341838374,1731250246287,-500.0,0.00027597,2]
[341838375,1731250246297,-500.0,0.00027597,2]
[341838376,1731250246307,-221.59322181,0.00027597,2]
[341838377,1731250246317,-538.18870807,0.00027597,2]
[341838378,1731250246327,-1006.294535,0.00027597,7]
[341838379,1731250246338,-1006.294535,0.00027597,7]
[341838380,1731250246348,-1006.294535,0.00027597,7]
[341838381,1731250246358,-502.83189425,0.00027597,2]
[341838382,1731250246368,-631.7619466,0.00027597,2]
[341838383,1731250246377,-500.0,0.00027597,2]
[341838384,1731250246387,-500.0,0.00027597,2]
[341838385,1731250246397,-1006.294535,0.00027597,7]
[341838386,1731250246407,-1006.294535,0.00027597,7]
[341838387,1731250246418,-1006.294535,0.00027597,7]
[341838388,1731250246427,-1073.536791,0.00027597,7]
[341838389,1731250246527,-1073.536791,0.00027597,7]
[341838390,1731250246538,-1023.03,0.00027597,2]
[341838391,1731250246548,-1073.536791,0.00027597,7]
[341838392,1731250246560,-1073.536791,0.00027597,7]
[341838393,1731250246570,-500.0,0.00027597,2]
[341838394,1731250246580,-500.0,0.00027597,2]
[341838395,1731250246590,-500.0,0.00027597,2]
[341838396,1731250246600,-500.0,0.00027597,2]
[341838397,1731250246611,-500.0,0.00027597,2]
[341838398,1731250246622,-500.0,0.00027597,2]
[341838399,1731250246632,-500.0,0.00027597,2]
[341838400,1731250246642,-502.39003401,0.00027597,2]
[341838401,1731250246652,-500.0,0.00027597,2]
[341838402,1731250246662,-500.0,0.00027597,2]
[341838403,1731250246673,-1407.87,0.00027597,2]
[341838404,1731250246688,-374.99876,0.00027597,7]
[341838405,1731250246699,-374.99876,0.00027597,7]
[341838406,1731250246709,-500.0,0.00027597,2]
[341838407,1731250246721,-374.99876,0.00027597,7]
[341838408,1731250246731,-151.0,0.00027597,7]
[341838409,1731250246741,-151.0,0.00027597,7]
[341838410,1731250246754,-151.0,0.00027597,7]
[341838411,1731250246765,-374.99876,0.00027597,7]
[341838412,1731250246775,-151.0,0.00027597,7]
[341838413,1731250246785,-374.99876,0.00027597,7]
[341838414,1731250246794,-151.0,0.00027597,7]
[341838415,1731250246805,-374.99876,0.00027597,7]
[341838416,1731250246815,-283.550785,0.00027597,7]
[341838417,1731250246825,-519.82112129,0.00027597,2]
[341838418,1731250246835,-150.112233,0.000276,13]
[341838419,1731250246845,-150.112233,0.000276,18]
[341838420,1731250246854,-1562.94,0.000276,14]
[341838421,1731250246864,-152.98556512,0.00027621,7]
[341838422,1731250246884,-152.98556512,0.00027621,7]
[341838423,1731250246897,-152.98556512,0.00027621,7]
[341838424,1731250246907,-152.98556512,0.00027621,7]
[341838425,1731250246918,-152.98556512,0.00027621,7]
[341838426,1731250246928,-152.98556512,0.00027621,7]
[341838427,1731250246938,-152.98556512,0.00027621,7]
[341838428,1731250246949,-152.98556512,0.00027621,7]
[341838429,1731250246959,-152.98,0.00027621,7]
[341838430,1731250246970,-158.86962532,0.00027621,7]
[341838431,1731250246980,-158.86962532,0.00027621,7]
[341838432,1731250246991,-158.86962532,0.00027621,7]
[341838433,1731250247008,-158.86962532,0.00027621,7]
[341838434,1731250247019,-158.86962532,0.00027621,7]
[341838435,1731250247030,-158.86962532,0.00027621,7]
[341838436,1731250247040,-158.86962532,0.00027621,7]
[341838437,1731250247050,-158.86962532,0.00027621,7]
[341838438,1731250247060,-158.86962532,0.00027621,7]
[341838439,1731250247070,-158.86962532,0.00027621,7]
[341838440,1731250247080,-158.86962532,0.00027621,7]
[341838441,1731250247090,-2835.62639961,0.00027684,2]
[341838442,1731250247100,-150.112233,0.000277,13]
[341838443,1731250247110,-2690.59570807,0.00027702,2]
[341838444,1731250247120,-160.67333792,0.00027719,10]
[341838445,1731250247130,-9773.14,0.00027719,2]
[341838446,1731250247140,-9773.14,0.00027719,2]
[341838447,1731250247150,-2140.67,0.00027719,2]
[341838448,1731250247160,-2140.67,0.00027719,2]
[341838449,1731250247170,-500.0,0.0002772,2]
[341838450,1731250247180,-151.0,0.0002772,7]
[341838451,1731250247189,-151.0,0.0002772,7]
[341838452,1731250247200,-590.590957,0.0002772,7]
[341838453,1731250247211,-590.590957,0.0002772,7]
[341838454,1731250247223,-180.335511,0.0002772,7]
[341838455,1731250247233,-416.22131605,0.0002772,2]
[341838456,1731250247247,-500.0,0.0002772,2]
[341838457,1731250247259,-151.0,0.0002772,7]
[341838458,1731250247269,-500.0,0.0002772,2]
[341838459,1731250247279,-500.0,0.0002772,2]
[341838460,1731250247290,-500.0,0.0002772,2]
[341838461,1731250247300,-500.0,0.0002772,2]
[341838462,1731250247310,-500.0,0.0002772,2]
[341838463,1731250247320,-321.719436,0.0002772,7]
[341838464,1731250247330,-321.719436,0.0002772,7]
[341838465,1731250247340,-500.0,0.0002772,2]
[341838466,1731250247350,-942.84,0.0002772,2]
[341838467,1731250247361,-500.0,0.0002772,2]
[341838468,1731250247371,-522.01435094,0.0002772,2]
[341838469,1731250247380,-151.0,0.0002772,7]
[341838470,1731250247389,-500.0,0.0002772,2]
[341838471,1731250247399,-1261.13,0.0002772,2]
[341838472,1731250247409,-1308.38,0.0002772,2]
[341838473,1731250247419,-151.0,0.0002772,7]
[341838474,1731250247429,-500.0,0.0002772,2]
[341838475,1731250247439,-1191.517808,0.0002772,7]
[341838476,1731250247449,-1191.517808,0.0002772,7]
[341838477,1731250247460,-233.59299236,0.0002772,2]
[341838478,1731250247469,-151.0,0.0002772,7]
[341838479,1731250247479,-818.29,0.0002772,2]
[341838480,1731250247489,-500.0,0.0002772,2]
[341838481,1731250247503,-500.0,0.0002772,2]
[341838482,1731250247513,-13516.98,0.0002772,2]
[341838483,1731250247523,-320.522925,0.0002772,7]
[341838484,1731250247532,-320.522925,0.0002772,7]
[341838485,1731250247542,-3024.3,0.0002772,2]
[341838486,1731250247551,-500.0,0.0002772,2]
[341838487,1731250247561,-2366.305193,0.0002772,7]
[341838488,1731250247571,-500.0,0.0002772,2]
[341838489,1731250247581,-500.0,0.0002772,2]
[341838490,1731250247591,-28298.33,0.0002772,2]
[341838491,1731250247600,-151.0,0.0002772,7]
[341838492,1731250247610,-500.0,0.0002772,2]
[341838493,1731250247620,-2366.305193,0.0002772,7]
[341838494,1731250247630,-151.0,0.0002772,7]
[341838495,1731250247639,-984.5,0.0002772,2]
[341838496,1731250247649,-500.0,0.0002772,2]
[341838497,1731250247658,-2173.92,0.0002772,2]
[341838498,1731250247668,-500.0,0.0002772,2]
[341838499,1731250247677,-500.0,0.0002772,2]
[341838500,1731250247687,-547.48,0.0002772,2]
[341838501,1731250247696,-2830.29,0.0002772,2]
[341838502,1731250247706,-9433.18,0.0002772,2]
[341838503,1731250247718,-549.23,0.0002772,2]
[341838504,1731250247728,-500.0,0.0002772,2]
[341838505,1731250247737,-511.61,0.0002772,2]
[341838506,1731250247750,-500.0,0.0002772,2]
[341838507,1731250247760,-500.0,0.0002772,2]
[341838508,1731250247771,-500.0,0.0002772,2]
[341838509,1731250247780,-511.73934386,0.0002772,2]
[341838510,1731250247791,-9773.14,0.0002772,2]
[341838511,1731250247800,-9773.14,0.0002772,2]
[341838512,1731250247810,-2140.67,0.0002772,2]
[341838513,1731250247820,-2140.67,0.0002772,2]
[341838514,1731250247829,-1006.294535,0.0002772,7]
[341838515,1731250247839,-592.29027667,0.0002772,2]
[341838516,1731250247849,-1006.294535,0.0002772,7]
[341838517,1731250247858,-1073.536791,0.0002772,7]
[341838518,1731250247868,-4375.62,0.0002772,2]
[341838519,1731250247877,-1073.536791,0.0002772,7]
[341838520,1731250247886,-500.0,0.0002772,2]
[341838521,1731250247895,-2406.81,0.0002772,2]
[341838523,1731250247905,-500.0,0.0002772,2]
[341838525,1731250247914,-500.0,0.0002772,2]
[341838526,1731250247923,-200.0,0.0002772,2]
[341838527,1731250247932,-2921.81,0.0002772,2]
[341838528,1731250247942,-775.52,0.0002772,2]
[341838529,1731250247951,-406.06965389,0.0002772,2]
[341838530,1731250247960,-1830.5,0.0002772,2]
[341838531,1731250247970,-500.0,0.0002772,2]
[341838532,1731250247979,-500.0,0.0002772,2]